bitfinex/quotes_BTCUSD_20250423
["timestamp","ask_amount","ask_price","bid_price","bid_amount"]
[1745426995631,0.28193188,93628.0,93627.0,0.00113951]
[1745426997026,0.30181228,93628.0,93627.0,0.00113951]
[1745426999691,0.71081228,93628.0,93627.0,0.00113951]
[1745427002307,0.72535313,93628.0,93627.0,0.00113951]
[1745427002746,0.78061153,93628.0,93627.0,0.00113951]
[1745427003178,0.85695766,93628.0,93627.0,0.00113951]
[1745427003406,0.75219766,93628.0,93627.0,0.00113951]
[1745427003588,0.77061153,93628.0,93627.0,0.00113951]
[1745427003798,0.76307068,93628.0,93600.0,0.36942003]
[1745427004002,0.10689014,93622.0,93600.0,0.3695597]
[1745427004340,0.65618054,93628.0,93600.0,0.00013967]
[1745427004341,0.10689014,93613.0,93600.0,0.00013967]
[1745427004761,0.00995704,93612.0,93600.0,0.00013967]
[1745427004955,0.10689014,93611.0,93600.0,0.00013967]
[1745427005652,0.0136965,93610.0,93600.0,0.00013967]
[1745427005855,0.10689014,93609.0,93600.0,0.00013967]
[1745427006480,0.00373954,93608.0,93600.0,0.00013967]
[1745427006683,0.10689014,93607.0,93600.0,0.00013967]
[1745427006896,0.10476,93606.0,93600.0,0.00013967]
[1745427007120,0.10689014,93601.0,93600.0,0.00013967]
[1745427007342,0.53043099,93601.0,93600.0,0.00013967]
[1745427007559,0.54038803,93601.0,93600.0,0.00013967]
[1745427007773,0.56026843,93601.0,93600.0,0.00013967]
[1745427009442,0.54038803,93601.0,93600.0,0.00013967]
[1745427009658,0.62570434,93601.0,93600.0,0.00113967]
[1745427009818,0.55438803,93601.0,93600.0,0.00213967]
[1745427010000,0.53984718,93601.0,93600.0,0.00213967]
[1745427010201,0.64460718,93601.0,93600.0,0.00213967]
[1745427010641,0.63465014,93601.0,93600.0,0.00213967]
[1745427011099,0.90886392,93601.0,93600.0,0.00213967]
[1745427011303,0.86716153,93601.0,93600.0,0.00213967]
[1745427011715,0.87711857,93601.0,93600.0,0.00213967]
[1745427012157,0.63104718,93601.0,93600.0,0.00213967]
[1745427012411,0.53984718,93601.0,93600.0,0.00213967]
[1745427012649,0.52989014,93601.0,93600.0,0.00213967]
[1745427012866,0.63469014,93601.0,93600.0,0.00213967]
[1745427013534,0.64923099,93601.0,93600.0,0.00213967]
[1745427013749,0.75915409,93601.0,93600.0,0.00213967]
[1745427014166,0.80675409,93601.0,93600.0,0.00213967]
[1745427014374,0.01454085,93593.0,93571.0,0.0008496]
[1745427014582,0.10689014,93572.0,93571.0,0.0008496]
[1745427014793,0.2154314,93572.0,93571.0,0.0008496]
[1745427015012,0.24158454,93572.0,93571.0,0.0008496]
[1745427015221,0.23784328,93572.0,93571.0,0.0008496]
[1745427015719,0.21169014,93572.0,93571.0,0.0008496]
[1745427015892,0.21843139,93572.0,93571.0,0.00231428]
[1745427016107,0.21469014,93572.0,93571.0,0.00231428]
[1745427016308,0.21769014,93572.0,93571.0,0.00231428]
[1745427017100,0.21769014,93572.0,93550.0,0.21144359]
[1745427017304,0.21769014,93572.0,93561.0,0.1567404]
[1745427017305,0.10689014,93569.0,93561.0,0.1567404]
[1745427017509,0.10689014,93569.0,93560.0,0.36942003]
[1745427017713,0.10689014,93569.0,93553.0,0.01068912]
[1745427017911,0.10689014,93569.0,93552.0,0.22447246]
[1745427018162,0.10689014,93569.0,93550.0,0.37342003]
[1745427018383,0.10689014,93569.0,93558.0,0.21376961]
[1745427018591,0.10689014,93569.0,93559.0,0.01068844]
[1745427019041,0.10789014,93569.0,93559.0,0.38010847]
[1745427019253,0.10889014,93569.0,93559.0,0.38010847]
[1745427019478,0.10689014,93569.0,93566.0,0.01068764]
[1745427019691,0.00046468,93572.0,93567.0,0.01068752]
[1745427019833,0.001,93569.0,93566.0,0.0485]
[1745427020037,0.001,93569.0,93567.0,0.34]
[1745427020516,0.10689014,93571.0,93567.0,0.35068752]
[1745427020747,0.00046468,93572.0,93571.0,0.21374143]
[1745427021645,0.00046468,93572.0,93571.0,0.55374143]
[1745427022367,0.00046468,93572.0,93571.0,0.55474143]
[1745427022582,0.00246468,93572.0,93571.0,0.55774143]
[1745427022801,0.00146468,93572.0,93571.0,0.55774143]
[1745427023029,0.00246468,93572.0,93571.0,0.56074143]
[1745427023497,0.00146468,93572.0,93571.0,0.55774143]
[1745427024168,0.00246468,93572.0,93571.0,0.55974143]
[1745427024410,0.00146468,93572.0,93571.0,0.55674143]
[1745427024631,0.00246468,93572.0,93571.0,0.56074143]
[1745427025089,0.00146468,93572.0,93571.0,0.55674143]
[1745427025528,0.00146468,93572.0,93571.0,0.60874143]
[1745427025739,0.00246468,93572.0,93571.0,0.61174143]
[1745427026183,0.00246468,93572.0,93571.0,0.61867752]
[1745427027561,0.00246468,93572.0,93571.0,0.61174143]
[1745427028005,0.00246468,93572.0,93571.0,0.62628228]
[1745427028235,0.409,93610.0,93604.0,0.0106833]
[1745427028478,0.0466,93633.0,93608.0,0.21365695]
[1745427028479,0.00013943,93609.0,93608.0,0.21365695]
[1745427029131,0.00013943,93609.0,93608.0,0.00692406]
[1745427029566,0.00113943,93609.0,93608.0,0.00692406]
[1745427029935,0.00313943,93609.0,93608.0,0.01392406]
[1745427030138,0.00313943,93609.0,93608.0,0.007]
[1745427030553,0.00313943,93609.0,93608.0,0.347]
[1745427030796,0.000425,93632.0,93627.0,0.21361359]
[1745427031024,0.000425,93632.0,93627.0,0.64647519]
[1745427031025,0.0004247,93628.0,93627.0,0.64647519]
[1745427031211,0.0004247,93628.0,93627.0,0.64451359]
[1745427031804,0.000425,93632.0,93628.0,0.35454085]
[1745427032000,0.000425,93632.0,93628.0,0.46143099]
[1745427032422,0.000425,93632.0,93630.0,0.34]
[1745427032734,0.000425,93632.0,93630.0,0.44689014]
[1745427033179,0.0024252,93649.0,93637.0,0.55359078]
[1745427033391,0.00056448,93638.0,93637.0,0.72172177]
[1745427033609,0.0024252,93649.0,93644.0,0.55357481]
[1745427033873,0.0024252,93649.0,93644.0,0.7221058]
[1745427034083,0.0024252,93649.0,93644.0,1.33964722]
[1745427034301,0.0024252,93649.0,93648.0,0.56810654]
[1745427034524,0.0024252,93649.0,93648.0,0.78652872]
[1745427034746,0.0024252,93649.0,93648.0,0.85233514]
[1745427035195,0.0024252,93649.0,93648.0,0.80420885]
[1745427035411,0.0024252,93649.0,93648.0,0.79731681]
[1745427036282,0.0024252,93649.0,93648.0,0.69042667]
[1745427036496,0.0024252,93649.0,93648.0,0.45151945]
[1745427037262,0.0024252,93649.0,93648.0,0.44464]
[1745427037464,0.0034252,93649.0,93648.0,0.44464]
[1745427038295,0.0034252,93649.0,93648.0,0.45151098]
[1745427038499,0.0034252,93649.0,93648.0,0.44464]
[1745427038838,0.0034252,93649.0,93648.0,0.65820569]
[1745427040099,0.0134252,93649.0,93648.0,0.65820569]
[1745427041217,0.0134252,93649.0,93648.0,0.66506509]
[1745427041422,0.0134252,93649.0,93648.0,0.77195523]
[1745427041792,0.0134252,93649.0,93648.0,0.80417621]
[1745427042012,0.0134252,93649.0,93648.0,0.69728607]
[1745427042249,0.0134252,93649.0,93648.0,0.77195523]
[1745427042741,0.0134252,93649.0,93648.0,0.81871706]
[1745427043374,0.0134252,93649.0,93648.0,0.85121273]
[1745427044462,0.0134252,93649.0,93648.0,0.77195523]
[1745427044680,0.0134252,93649.0,93648.0,0.4494994]
[1745427044903,0.0134252,93649.0,93648.0,0.66306509]
[1745427045121,0.0134252,93649.0,93648.0,0.55842509]
[1745427045385,0.0134252,93649.0,93648.0,0.55156569]
[1745427045598,0.0134252,93649.0,93634.0,0.01067988]
[1745427045599,0.0144252,93649.0,93634.0,0.01067988]
[1745427045799,0.0144252,93649.0,93646.0,0.21356979]
[1745427046008,0.0144252,93649.0,93646.0,0.01067851]
[1745427046216,0.0144252,93649.0,93648.0,0.21356569]
[1745427046673,0.0144252,93649.0,93648.0,0.55356569]
[1745427046880,0.0124252,93649.0,93648.0,0.55356569]
[1745427047091,0.0144252,93649.0,93648.0,0.55356569]
[1745427047505,0.0124252,93649.0,93648.0,0.55356569]
[1745427048320,0.0124252,93649.0,93648.0,0.34]
[1745427048562,0.0124252,93649.0,93632.0,0.0106801]
[1745427048775,0.0124252,93649.0,93648.0,0.001]
[1745427049005,0.11931534,93649.0,93648.0,0.001]
[1745427049239,0.17195288,93649.0,93648.0,0.001]
[1745427049475,0.17195328,93649.0,93648.0,0.001]
[1745427049678,0.17195328,93649.0,93609.0,0.21365418]
[1745427049889,0.10689014,93645.0,93615.0,0.01068204]
[1745427050109,0.1106284,93645.0,93619.0,0.35068159]
[1745427050335,0.10689014,93645.0,93621.0,0.01068136]
[1745427050592,0.10689014,93645.0,93622.0,0.01068125]
[1745427050828,0.00373802,93644.0,93618.0,0.34]
[1745427051032,0.10689014,93643.0,93618.0,0.3506817]
[1745427051256,0.10689014,93643.0,93631.0,0.21360446]
[1745427051697,0.10689014,93643.0,93634.0,0.01067988]
[1745427051916,0.10689014,93643.0,93632.0,0.22428078]
[1745427051917,0.10689014,93643.0,93635.0,0.01067976]
[1745427052138,0.10689014,93643.0,93632.0,0.22428146]
[1745427052551,0.10789014,93643.0,93634.0,0.01067988]
[1745427052766,0.10989014,93643.0,93634.0,0.01067988]
[1745427052984,0.10989014,93643.0,93633.0,0.01067999]
[1745427053251,0.10989014,93643.0,93631.0,0.01068022]
[1745427053493,0.10789014,93643.0,93633.0,0.01067999]
[1745427054127,0.10789014,93643.0,93632.0,0.0116801]
[1745427054333,0.10689014,93643.0,93633.0,0.01067999]
[1745427054536,0.001,93643.0,93642.0,0.22425833]
[1745427054757,0.10789014,93643.0,93632.0,0.001]
[1745427054970,0.10689014,93642.0,93633.0,0.01067999]
[1745427055185,0.10689014,93642.0,93632.0,0.0106801]
[1745427056102,0.10789014,93642.0,93632.0,0.0106801]
[1745427056303,0.10789014,93642.0,93633.0,0.01067999]
[1745427056713,0.10789014,93642.0,93632.0,0.001]
[1745427056714,0.08679284,93638.0,93632.0,0.001]
[1745427056965,0.11062871,93637.0,93599.0,0.01068387]
[1745427057169,0.11062871,93637.0,93632.0,0.001]
[1745427058469,0.10689014,93637.0,93609.0,0.01068273]
[1745427058691,0.10689014,93637.0,93348.0,1.0601]
[1745427058692,0.10689014,93618.0,93590.0,0.00557121]
[1745427058930,0.0499,93617.0,93590.0,0.00557121]
[1745427059167,0.10689014,93616.0,93587.0,0.01068524]
[1745427059383,0.10689014,93616.0,93587.0,0.34]
[1745427059619,0.10689014,93610.0,93574.0,0.21373357]
[1745427059848,0.10689014,93610.0,93581.0,0.01068592]
[1745427060073,0.10689014,93610.0,93594.0,0.0038492]
[1745427060305,0.10689014,93610.0,93594.0,0.00398863]
[1745427060530,0.10689014,93610.0,93594.0,0.00098863]
[1745427060748,0.10689014,93610.0,93609.0,0.002]
[1745427061225,0.10689014,93610.0,93594.0,0.00098863]
[1745427061644,0.10689014,93610.0,93594.0,0.00298863]
[1745427062062,0.10689014,93610.0,93594.0,0.00398863]
[1745427062270,0.05634901,93609.0,93594.0,0.00098863]
[1745427062414,0.10689014,93608.0,93594.0,0.00098863]
[1745427062623,0.10689014,93608.0,93594.0,0.00198863]
[1745427062833,0.10689014,93608.0,93596.0,0.01068421]
[1745427063044,0.002,93610.0,93599.0,0.01068387]
[1745427063270,0.10689014,93609.0,93600.0,0.01068376]
[1745427063608,0.10689014,93609.0,93594.0,0.01167307]
[1745427063805,0.10689014,93609.0,93595.0,0.35068433]
[1745427064017,0.10689014,93609.0,93596.0,0.01068421]
[1745427064232,0.10689014,93609.0,93598.0,0.34]
[1745427064462,0.10689014,93609.0,93599.0,0.2243611]
[1745427064701,0.10689014,93609.0,93598.0,0.34]
[1745427065399,0.10689014,93609.0,93597.0,0.3506841]
[1745427065607,0.00373894,93608.0,93598.0,0.002]
[1745427065820,0.10689014,93607.0,93598.0,0.002]
[1745427066796,0.10689014,93607.0,93594.0,0.00098863]
[1745427067468,0.00373966,93606.0,93594.0,0.00098863]
[1745427067706,0.10689014,93605.0,93594.0,0.00098863]
[1745427068974,0.10889014,93605.0,93594.0,0.00098863]
[1745427069409,0.1126298,93605.0,93594.0,0.00098863]
[1745427069623,0.10889014,93605.0,93594.0,0.00098863]
[1745427070481,0.11062983,93604.0,93594.0,0.00098863]
[1745427070699,0.0988,93603.0,93594.0,0.00098863]
[1745427070930,0.11063001,93602.0,93594.0,0.00098863]
[1745427071163,0.10689014,93602.0,93596.0,0.01068421]
[1745427071385,0.002,93605.0,93602.0,0.01068353]
[1745427071611,0.10448,93615.0,93599.0,0.01068387]
[1745427071814,0.002,93603.0,93601.0,0.01068364]
[1745427072130,0.002,93603.0,93594.0,0.00098863]
[1745427072355,0.10889014,93602.0,93595.0,0.01068433]
[1745427072566,0.10689014,93602.0,93596.0,0.01068421]
[1745427072774,0.10689014,93602.0,93595.0,0.01068433]
[1745427072971,0.10689014,93602.0,93595.0,0.22436965]
[1745427073190,0.10689014,93602.0,93597.0,0.0106841]
[1745427073625,0.10689014,93602.0,93599.0,0.2243611]
[1745427073814,0.10689014,93602.0,93597.0,0.0106841]
[1745427073966,0.10689014,93602.0,93594.0,0.2146768]
[1745427074165,0.10689014,93602.0,93597.0,0.0106841]
[1745427074402,0.10689014,93602.0,93596.0,0.22436831]
[1745427074606,0.10889014,93602.0,93598.0,0.01068398]
[1745427074816,0.10889014,93602.0,93597.0,0.22436516]
[1745427075018,0.10889014,93602.0,93598.0,0.01068398]
[1745427075459,0.10889014,93602.0,93599.0,0.22436136]
[1745427075684,0.00086062,93602.0,93601.0,0.21367293]
[1745427076258,0.00086062,93602.0,93601.0,0.55663741]
[1745427076466,0.00086062,93602.0,93601.0,0.72260392]
[1745427077056,0.00086062,93602.0,93601.0,0.60117293]
[1745427078084,0.00186062,93602.0,93601.0,0.60717293]
[1745427079147,0.00286062,93602.0,93601.0,0.61217293]
[1745427081123,0.00286062,93602.0,93601.0,0.56567293]
[1745427082047,0.0475,93641.0,93638.0,0.01067942]
[1745427082252,0.08679284,93645.0,93635.0,0.01067976]
[1745427082253,0.10689014,93640.0,93637.0,0.01067953]
[1745427082453,0.10689014,93640.0,93635.0,0.22427458]
[1745427082591,0.10689014,93640.0,93635.0,0.01067976]
[1745427082796,0.10689014,93640.0,93637.0,0.01067953]
[1745427082997,0.10689014,93640.0,93634.0,0.22427576]
[1745427083273,0.10689014,93640.0,93639.0,0.21358621]
[1745427083585,0.00013931,93640.0,93639.0,0.21358621]
[1745427083803,0.00013931,93640.0,93639.0,0.55554703]
[1745427084055,0.00013931,93640.0,93639.0,0.55358621]
[1745427084663,0.00413931,93640.0,93639.0,0.55358621]
[1745427085029,0.00013931,93640.0,93639.0,0.55358621]
[1745427085226,0.00013931,93640.0,93639.0,0.55458621]
[1745427085427,0.00013931,93640.0,93639.0,0.55558621]
[1745427087910,0.00013931,93640.0,93639.0,0.342]
[1745427093449,0.00013931,93640.0,93639.0,0.55558621]
[1745427094693,0.00013931,93640.0,93639.0,0.56250002]
[1745427095322,0.00013931,93640.0,93639.0,0.56150002]
[1745427095564,0.00013931,93640.0,93639.0,0.55458621]
[1745427095780,0.00013931,93640.0,93639.0,0.55358621]
[1745427096383,0.00013931,93640.0,93639.0,0.56049644]
[1745427097413,0.00013931,93640.0,93639.0,0.66738658]
[1745427098076,0.00013931,93640.0,93639.0,0.68292743]
[1745427098265,0.0114252,93649.0,93648.0,0.55356569]
[1745427098477,0.01154921,93649.0,93648.0,0.55356569]
[1745427098635,0.01154921,93649.0,93648.0,0.56047592]
[1745427099317,0.01454921,93649.0,93648.0,0.56047592]
[1745427099821,0.01254921,93649.0,93648.0,0.56047592]
[1745427099953,0.01554921,93649.0,93648.0,0.56047592]
[1745427101396,0.01554921,93649.0,93648.0,0.34691023]
[1745427101623,0.01554921,93649.0,93648.0,0.56047592]
[1745427101838,0.01554921,93649.0,93648.0,0.34691023]
[1745427102043,0.01554921,93649.0,93648.0,0.00691023]
[1745427102268,0.01254921,93649.0,93646.0,0.22424853]
[1745427102471,0.01254921,93649.0,93643.0,0.01067885]
[1745427102676,0.01254921,93649.0,93644.0,0.00666873]
[1745427102893,0.00954921,93649.0,93644.0,0.35734747]
[1745427103094,0.00954921,93649.0,93644.0,0.34666873]
[1745427103525,0.00954921,93649.0,93645.0,0.00666873]
[1745427104381,0.00954921,93649.0,93638.0,0.01067942]
[1745427104580,0.11643935,93649.0,93640.0,0.35067919]
[1745427104781,0.11643935,93649.0,93640.0,0.34]
[1745427104987,0.11843935,93649.0,93640.0,0.35067919]
[1745427105230,0.11843935,93649.0,93640.0,0.34]
[1745427105436,0.11643935,93649.0,93643.0,0.001]
[1745427105638,0.11743935,93649.0,93645.0,0.01067862]
[1745427105895,0.11843935,93649.0,93645.0,0.01067862]
[1745427106135,0.11843935,93649.0,93648.0,0.21356569]
[1745427106340,0.11743935,93649.0,93648.0,0.34]
[1745427106534,0.11843935,93649.0,93648.0,0.34]
[1745427106864,0.11743935,93649.0,93648.0,0.34]
[1745427107099,0.11843935,93649.0,93648.0,0.34]
[1745427107298,0.12043935,93649.0,93648.0,0.34]
[1745427108308,0.11843935,93649.0,93648.0,0.34666904]
[1745427108509,0.11643935,93649.0,93648.0,0.34666904]
[1745427108841,0.12143935,93649.0,93648.0,0.34666904]
[1745427109562,0.01454921,93649.0,93648.0,0.34666904]
[1745427109767,0.01454921,93649.0,93648.0,0.56023473]
[1745427110203,0.01454921,93649.0,93648.0,0.34666904]
[1745427110770,0.01454921,93649.0,93648.0,0.56023473]
[1745427113583,0.01454921,93649.0,93648.0,0.00666904]
[1745427114235,0.01454921,93649.0,93648.0,0.22023473]
[1745427118395,0.01454921,93649.0,93648.0,0.00666904]
[1745427118608,0.01454921,93649.0,93648.0,0.22023473]
[1745427118992,0.12143935,93649.0,93648.0,0.00666904]
[1745427123573,0.01454921,93649.0,93648.0,0.22023473]
[1745427124011,0.01454921,93649.0,93648.0,0.56023473]
[1745427125105,0.01254921,93649.0,93648.0,0.56023473]
[1745427125313,0.01054921,93649.0,93648.0,0.56023473]
[1745427125542,0.01254921,93649.0,93648.0,0.56023473]
[1745427125955,0.01054921,93649.0,93648.0,0.56023473]
[1745427126173,0.00954921,93649.0,93648.0,0.56023473]
[1745427127738,1e-08,93650.0,93649.0,0.61590426]
[1745427127944,1e-08,93652.0,93651.0,0.5680997]
[1745427128166,1e-08,93652.0,93651.0,0.68165888]
[1745427129255,0.00100001,93652.0,93651.0,0.68165888]
[1745427129768,0.00200001,93652.0,93651.0,0.68165888]
[1745427132556,0.00200001,93652.0,93651.0,0.78581888]
[1745427132752,0.00200001,93652.0,93651.0,0.68165888]
[1745427132965,0.00200001,93652.0,93651.0,0.78581888]
[1745427136631,0.00200001,93652.0,93651.0,0.56022789]
[1745427136838,0.00200001,93652.0,93651.0,0.22022789]
[1745427137037,0.00200001,93652.0,93651.0,0.56022789]
[1745427140227,0.00200001,93652.0,93651.0,0.68165888]
[1745427140865,0.00200001,93652.0,93651.0,0.67498984]
[1745427141083,0.00100001,93652.0,93651.0,0.67498984]
[1745427141272,1e-08,93652.0,93651.0,0.67698984]
[1745427141510,1e-08,93652.0,93651.0,0.67898984]
[1745427143144,1e-08,93652.0,93651.0,0.72858984]
[1745427147687,1e-08,93652.0,93651.0,0.38858984]
[1745427149636,1e-08,93652.0,93651.0,0.72858984]
[1745427151512,0.0004251,93663.0,93662.0,0.56807462]
[1745427151637,0.0004251,93663.0,93662.0,0.67496476]
[1745427152752,0.0014251,93663.0,93662.0,0.67496476]
[1745427153158,0.0014251,93663.0,93662.0,0.68163098]
[1745427157109,0.0004251,93663.0,93662.0,0.68163098]
[1745427157766,0.0004251,93663.0,93662.0,0.00666622]
[1745427158197,0.0004251,93663.0,93662.0,0.22219999]
[1745427158795,0.0004251,93663.0,93662.0,0.22019999]
[1745427158957,0.0004251,93663.0,93662.0,0.00666622]
[1745427159162,0.0004251,93663.0,93662.0,0.22119999]
[1745427159363,0.0004251,93663.0,93662.0,0.00766622]
[1745427159566,0.0004251,93663.0,93662.0,0.22119999]
[1745427159770,0.0014251,93663.0,93662.0,0.22119999]
[1745427160171,0.0014251,93663.0,93662.0,0.22219999]
[1745427160576,0.0014251,93663.0,93662.0,0.22119999]
[1745427160779,0.0024251,93663.0,93662.0,0.22119999]
[1745427161090,0.0014251,93663.0,93662.0,0.22019999]
[1745427161295,0.0044251,93663.0,93662.0,0.22019999]
[1745427161518,0.0014251,93663.0,93662.0,0.22019999]
[1745427161713,0.0024251,93663.0,93662.0,0.22019999]
[1745427170106,0.0004248,93666.0,93664.0,0.56807006]
[1745427170316,0.0004248,93666.0,93664.0,0.6749602]
[1745427170523,0.0004248,93666.0,93664.0,0.68162642]
[1745427170729,0.0004248,93666.0,93664.0,0.78562642]
[1745427172145,0.0004248,93666.0,93664.0,0.78762642]
[1745427173274,0.0004248,93666.0,93664.0,0.77608557]
[1745427173508,0.0004248,93666.0,93664.0,0.43608557]
[1745427173736,0.0004248,93666.0,93664.0,0.11566622]
[1745427173945,0.0004248,93666.0,93664.0,0.22519543]
[1745427174178,0.0004248,93666.0,93664.0,0.01166622]
[1745427174400,0.0004248,93666.0,93664.0,0.22519543]
[1745427174629,0.0004248,93666.0,93664.0,0.22219543]
[1745427176345,0.0004248,93666.0,93664.0,0.00866622]
[1745427176547,0.0014247,93665.0,93664.0,0.00866622]
[1745427176835,0.0014247,93665.0,93664.0,0.00666622]
[1745427177251,0.0024247,93665.0,93664.0,0.00666622]
[1745427177472,0.0024247,93665.0,93664.0,0.22019543]
[1745427178305,0.0024247,93665.0,93664.0,0.56019543]
[1745427181007,0.0024247,93665.0,93664.0,0.34666622]
[1745427181228,0.0024247,93665.0,93664.0,0.00666622]
[1745427181229,0.10931484,93665.0,93664.0,0.00666622]
[1745427181443,0.15771484,93665.0,93664.0,0.00666622]
[1745427183034,0.15971484,93665.0,93664.0,0.00666622]
[1745427183444,0.15871484,93665.0,93664.0,0.00666622]
[1745427183661,0.0538247,93665.0,93664.0,0.22019543]
[1745427183874,0.0538247,93665.0,93664.0,0.00666622]
[1745427185175,0.0538247,93665.0,93664.0,0.22019543]
[1745427185377,0.0538247,93665.0,93664.0,0.00666622]
[1745427185850,0.0538247,93665.0,93664.0,0.22019543]
[1745427186063,0.0538247,93665.0,93664.0,0.00666622]
[1745427186913,0.0538247,93665.0,93664.0,0.22019543]
[1745427187117,0.0054247,93665.0,93664.0,0.22019543]
[1745427187767,0.0054247,93665.0,93664.0,0.00666622]
[1745427190105,0.11231484,93665.0,93664.0,0.00666622]
[1745427192559,0.11031484,93665.0,93664.0,0.00666622]
[1745427193270,0.10831484,93665.0,93664.0,0.00666622]
[1745427193431,0.11031484,93665.0,93664.0,0.00666622]
[1745427193806,0.11231484,93665.0,93664.0,0.00666622]
[1745427194030,0.11031484,93665.0,93664.0,0.00666622]
[1745427194251,0.11031484,93665.0,93664.0,0.22019543]
[1745427194252,0.0054247,93665.0,93664.0,0.22019543]
[1745427194977,0.0054247,93665.0,93664.0,0.00666622]
[1745427195850,0.0054247,93665.0,93664.0,0.22019543]
[1745427196077,0.0054247,93665.0,93664.0,0.00666622]
[1745427199712,0.0034247,93665.0,93664.0,0.00666622]
[1745427199920,0.0014247,93665.0,93664.0,0.00666622]
[1745427200286,0.0024247,93665.0,93664.0,0.00666622]
[1745427200432,0.0034247,93665.0,93664.0,0.00666622]
[1745427200637,0.11031484,93665.0,93664.0,0.00666622]
[1745427201319,0.20765166,93665.0,93664.0,0.00666622]
[1745427201526,0.20765205,93665.0,93664.0,0.00666622]
[1745427201897,0.20765205,93665.0,93643.0,0.35067885]
[1745427201898,0.20291484,93665.0,93643.0,0.34]
[1745427202105,0.10689014,93664.0,93643.0,0.35067885]
[1745427202313,0.10689014,93664.0,93644.0,0.00666941]
[1745427202514,0.10689014,93664.0,93644.0,0.01734815]
[1745427202745,0.10689014,93664.0,93645.0,0.34666941]
[1745427203077,0.10689014,93664.0,93645.0,0.35734803]
[1745427203293,0.10689014,93664.0,93646.0,0.00666941]
[1745427203478,0.10689014,93664.0,93653.0,0.01067771]
[1745427203688,0.10689014,93664.0,93654.0,0.22422742]
[1745427203885,0.10689014,93664.0,93650.0,0.01067805]
[1745427204113,0.10689014,93664.0,93651.0,0.00666941]
[1745427204381,0.10689014,93664.0,93652.0,0.00666941]
[1745427204588,0.10689014,93664.0,93655.0,0.01067748]
[1745427204803,0.10689014,93664.0,93655.0,0.2242252]
[1745427205205,0.10689014,93664.0,93656.0,0.00666941]
[1745427205586,0.10789014,93664.0,93656.0,0.01734678]
[1745427205843,0.10789014,93664.0,93656.0,0.00666941]
[1745427206042,0.10789014,93664.0,93657.0,0.00666941]
[1745427206263,0.10689014,93664.0,93657.0,0.00666941]
[1745427206489,0.10989014,93664.0,93658.0,0.00666941]
[1745427206902,0.10789014,93664.0,93659.0,0.00666941]
[1745427207129,0.10989014,93664.0,93659.0,0.00666941]
[1745427207357,0.10989014,93664.0,93660.0,0.00666941]
[1745427207753,0.10889014,93664.0,93660.0,0.00666941]
[1745427207956,0.10889014,93664.0,93661.0,0.00666941]
[1745427208164,0.11089014,93664.0,93661.0,0.00666941]
[1745427208380,0.11089014,93664.0,93662.0,0.00666941]
[1745427208578,0.10889014,93664.0,93662.0,0.00666941]
[1745427208793,0.11089014,93664.0,93662.0,0.00666941]
[1745427208997,0.11089014,93664.0,93663.0,0.00666941]
[1745427209211,0.10689014,93664.0,93663.0,0.00666941]
[1745427209348,0.11089014,93664.0,93663.0,0.00666941]
[1745427209775,0.10889014,93664.0,93663.0,0.00666941]
[1745427209982,0.10689014,93664.0,93663.0,0.00666941]
[1745427210180,0.0950247,93665.0,93663.0,0.2202009]
[1745427210379,0.20191484,93665.0,93664.0,0.21352921]
[1745427210627,0.20191484,93665.0,93664.0,0.00666941]
[1745427210799,0.20091484,93665.0,93664.0,0.00666941]
[1745427211495,0.10696381,93665.0,93664.0,0.22019862]
[1745427211706,0.10996381,93665.0,93664.0,0.22019862]
[1745427212166,0.10996381,93665.0,93664.0,0.00666941]
[1745427212374,0.11296381,93665.0,93664.0,0.00666941]
[1745427212586,0.10996381,93665.0,93664.0,0.00666941]
[1745427212792,0.10896381,93665.0,93664.0,0.00666941]
[1745427213210,0.11196381,93665.0,93664.0,0.00666941]
[1745427216068,0.16086381,93665.0,93664.0,0.00666941]
[1745427216296,0.20946381,93665.0,93664.0,0.00666941]
[1745427216975,0.20946381,93665.0,93644.0,0.56425301]
[1745427217212,0.10689014,93664.0,93645.0,0.01067862]
[1745427217701,0.10689014,93664.0,93644.0,0.34]
[1745427217927,0.10689014,93664.0,93645.0,0.01067862]
[1745427218724,0.10689014,93664.0,93645.0,0.22425072]
[1745427218889,0.10689014,93664.0,93645.0,0.01067862]
[1745427219137,0.10689014,93664.0,93644.0,0.002]
[1745427219468,0.10689014,93664.0,93645.0,0.001]
[1745427219676,0.10689014,93664.0,93645.0,0.003]
[1745427220862,0.10689014,93664.0,93646.0,0.00666938]
[1745427221552,0.10689014,93664.0,93647.0,0.00666938]
[1745427222019,0.10689014,93664.0,93648.0,0.00666938]
[1745427222255,0.15419014,93655.0,93648.0,0.00666938]
[1745427222500,0.15419014,93649.0,93648.0,0.00666938]
[1745427222712,0.0952,93648.0,93646.0,0.001]
[1745427222938,0.30467798,93647.0,93646.0,0.001]
[1745427223160,0.01454085,93643.0,93623.0,0.00085]
[1745427223390,0.0952,93628.0,93625.0,0.00097401]
[1745427223629,0.21065014,93627.0,93625.0,0.00097401]
[1745427223835,0.00373894,93626.0,93625.0,0.00097401]
[1745427224037,0.10689014,93626.0,93625.0,0.00097401]
[1745427224394,0.11062907,93626.0,93625.0,0.00097401]
[1745427224802,0.10689014,93626.0,93625.0,0.00097401]
[1745427231375,0.11062876,93626.0,93625.0,0.00097401]
[1745427231575,0.15842876,93626.0,93625.0,0.00097401]
[1745427232404,0.15942876,93626.0,93625.0,0.00097401]
[1745427232581,0.16042876,93626.0,93625.0,0.00097401]
[1745427232982,0.15942876,93626.0,93625.0,0.00097401]
[1745427233295,0.17142876,93626.0,93625.0,0.00197401]
[1745427233720,0.11989014,93626.0,93625.0,0.00197401]
[1745427233919,0.013,93626.0,93625.0,0.00197401]
[1745427234487,0.013,93626.0,93625.0,0.55559216]
[1745427234868,0.409,93642.0,93634.0,0.01067988]
[1745427235081,0.10689014,93641.0,93632.0,0.3506801]
[1745427235489,0.10689014,93641.0,93632.0,0.34]
[1745427235697,0.10689014,93641.0,93632.0,0.3506801]
[1745427235901,0.10689014,93641.0,93633.0,0.01067999]
[1745427236346,0.10889014,93641.0,93630.0,0.34]
[1745427236551,0.10889014,93641.0,93633.0,0.01067999]
[1745427236765,0.11089014,93641.0,93633.0,0.01067999]
[1745427237384,0.11089014,93641.0,93634.0,0.01067988]
[1745427237640,0.004,93641.0,93639.0,0.21358518]
[1745427238058,0.1036,93660.0,93658.0,0.21354104]
[1745427238279,0.21049014,93660.0,93658.0,0.21354104]
[1745427238491,0.10689014,93660.0,93658.0,0.21354104]
[1745427239428,0.10689014,93660.0,93657.0,0.22422001]
[1745427239429,0.10789014,93660.0,93657.0,0.22422001]
[1745427239665,0.10789014,93660.0,93658.0,0.2135422]
[1745427239879,0.10789014,93660.0,93658.0,0.04833384]
[1745427240343,0.001,93660.0,93658.0,0.04833384]
[1745427241035,0.1036,93676.0,93660.0,0.01067691]
[1745427241254,0.10689014,93663.0,93651.0,0.34]
[1745427241484,0.001,93660.0,93651.0,0.34]
[1745427241697,0.001,93660.0,93653.0,0.01067771]